fUSD/lending_fUSD_20240423
["ID","MTS","AMOUNT","RATE_DAILY","PERIOD"]
[323259158,1713856238237,-500.0,0.00011477,2]
[323259159,1713856238246,-500.0,0.00011477,2]
[323259160,1713856238255,-500.0,0.00011477,2]
[323259161,1713856238265,-500.0,0.00011477,2]
[323259162,1713856238274,-500.0,0.00011477,2]
[323259163,1713856238283,-500.0,0.00011477,2]
[323259164,1713856238292,-500.0,0.00011477,2]
[323259165,1713856238301,-500.0,0.00011477,2]
[323259166,1713856238310,-500.0,0.00011477,2]
[323259167,1713856238320,-500.0,0.00011477,2]
[323259168,1713856238329,-500.0,0.00011477,2]
[323259169,1713856238340,-500.0,0.00011477,2]
[323259170,1713856238350,-107.81618697,0.00011477,2]
[323259171,1713856238387,-392.18381303,0.00011477,2]
[323259172,1713856238396,-500.0,0.00011477,2]
[323259173,1713856238405,-144.06069748,0.00011477,2]
[323259174,1713856238416,-355.93930252,0.00011477,2]
[323259175,1713856238426,-500.0,0.00011477,2]
[323259176,1713856238435,-500.0,0.00011477,2]
[323259177,1713856238444,-500.0,0.00011477,2]
[323259178,1713856238454,-500.0,0.00011477,2]
[323259179,1713856238463,-500.0,0.00011477,2]
[323259180,1713856238473,-500.0,0.00011477,2]
[323259181,1713856238481,-500.0,0.00011477,2]
[323259182,1713856238490,-500.0,0.00011477,2]
[323259183,1713856238499,-500.0,0.00011477,2]
[323259184,1713856238508,-500.0,0.00011477,2]
[323259185,1713856238518,-500.0,0.00011477,2]
[323259186,1713856238528,-500.0,0.00011477,2]
[323259187,1713856238539,-500.0,0.00011477,2]
[323259188,1713856238547,-500.0,0.00011477,2]
[323259190,1713856238557,-500.0,0.00011477,2]
[323259192,1713856238566,-500.0,0.00011477,2]
[323259194,1713856238575,-500.0,0.00011477,2]
[323259196,1713856238584,-500.0,0.00011477,2]
[323259198,1713856238593,-500.0,0.00011477,2]
[323259200,1713856238603,-500.0,0.00011477,2]
[323259202,1713856238612,-500.0,0.00011477,2]
[323259204,1713856238620,-500.0,0.00011477,2]
[323259206,1713856238629,-500.0,0.00011477,2]
[323259208,1713856238638,-500.0,0.00011477,2]
[323259210,1713856238648,-500.0,0.00011477,2]
[323259212,1713856238658,-500.0,0.00011477,2]
[323259214,1713856238668,-500.0,0.00011477,2]
[323259216,1713856238677,-500.0,0.00011477,2]
[323259218,1713856238686,-500.0,0.00011477,2]
[323259220,1713856238695,-500.0,0.00011477,2]
[323259222,1713856238704,-500.0,0.00011477,2]
[323259224,1713856238713,-500.0,0.00011477,2]
[323259226,1713856238722,-500.0,0.00011477,2]
[323259228,1713856238731,-500.0,0.00011477,2]
[323259230,1713856238741,-500.0,0.00011477,2]
[323259232,1713856238750,-500.0,0.00011477,2]
[323259234,1713856238759,-500.0,0.00011477,2]
[323259236,1713856238769,-500.0,0.00011477,2]
[323259238,1713856238777,-500.0,0.00011477,2]
[323259240,1713856238786,-500.0,0.00011477,2]
[323259242,1713856238795,-500.0,0.00011477,2]
[323259244,1713856238804,-500.0,0.00011477,2]
[323259246,1713856238813,-500.0,0.00011477,2]
[323259248,1713856238822,-511.84,0.00011477,2]
[323259250,1713856238831,-500.0,0.00011477,2]
[323259252,1713856238840,-500.0,0.00011477,2]
[323259254,1713856238848,-500.0,0.00011477,2]
[323259256,1713856238858,-500.0,0.00011477,2]
[323259258,1713856238867,-500.0,0.00011477,2]
[323259260,1713856238876,-500.0,0.00011477,2]
[323259262,1713856238885,-500.0,0.00011477,2]
[323259264,1713856238894,-500.0,0.00011477,2]
[323259266,1713856238903,-500.0,0.00011477,2]
[323259268,1713856238912,-500.0,0.00011477,2]
[323259270,1713856238922,-500.0,0.00011477,2]
[323259272,1713856238930,-500.0,0.00011477,2]
[323259274,1713856238939,-500.0,0.00011477,2]
[323259276,1713856238950,-500.0,0.00011477,2]
[323259278,1713856238959,-500.0,0.00011477,2]
[323259280,1713856238968,-448.73982121,0.00011477,2]
[323259284,1713856238996,-51.26017879,0.00011477,2]
[323259286,1713856239005,-500.0,0.00011477,2]
[323259288,1713856239014,-500.0,0.00011477,2]
[323259290,1713856239024,-500.0,0.00011477,2]
[323259292,1713856239034,-514.46,0.00011477,2]
[323259294,1713856239042,-500.0,0.00011477,2]
[323259296,1713856239052,-500.0,0.00011477,2]
[323259298,1713856239061,-500.0,0.00011477,2]
[323259300,1713856239071,-2634.92482978,0.0001188,2]
[323259302,1713856239080,-499.99,0.0001188,2]
[323259304,1713856239089,-311.085,0.00011899,2]
[323259306,1713856239098,-556.74332548,0.00011899,2]
[323259308,1713856239107,-451.2776,0.000119,2]
[323259310,1713856239116,-152.85096224,0.000119,2]
[323259312,1713856239125,-177.05834528,0.000119,2]
[323259314,1713856239134,-3871.14964752,0.000119,2]
[323259316,1713856239144,-181.04995257,0.000119,2]
[323259318,1713856239154,-4583.44785109,0.00011988,2]
[323259320,1713856239162,-265.76037474,0.00011988,2]
[323259322,1713856239172,-3871.1496475,0.00011991,2]
[323259324,1713856239182,-4332.05548952,0.00011995,2]
[323259326,1713856239191,-155.21727484,0.00011996,2]
[323259328,1713856239202,-157.27832228,0.00011996,2]
[323259330,1713856239210,-167.32653408,0.00011997,2]
[323259332,1713856239219,-2500.68,0.00011997,2]
[323259334,1713856239228,-500.0,0.00011997,2]
[323259336,1713856239237,-1573.3,0.00011997,2]
[323259338,1713856239247,-548.42,0.00011997,2]
[323259340,1713856239257,-5000.47,0.00011997,2]
[323259342,1713856239266,-575.39,0.00011997,2]
[323259344,1713856239275,-566.2,0.00011997,2]
[323259346,1713856239285,-500.0,0.00011997,2]
[323259348,1713856239294,-500.0,0.00011997,2]
[323259350,1713856239302,-5825.4,0.00011997,2]
[323259352,1713856239311,-500.0,0.00011997,2]
[323259354,1713856239320,-500.0,0.00011997,2]
[323259356,1713856239329,-1427.11,0.00011997,2]
[323259358,1713856239339,-10963.42,0.00011997,2]
[323259360,1713856239349,-500.0,0.00011997,2]
[323259362,1713856239360,-1312.47,0.00011997,2]
[323259364,1713856239369,-500.0,0.00011997,2]
[323259366,1713856239378,-3878.63,0.00011997,2]
[323259368,1713856239387,-12480.22,0.00011997,2]
[323259370,1713856239397,-500.0,0.00011997,2]
[323259372,1713856239406,-7402.42,0.00011997,2]
[323259374,1713856239415,-500.0,0.00011997,2]
[323259376,1713856239424,-1261.87,0.00011997,2]
[323259378,1713856239433,-1797.84,0.00011997,2]
[323259380,1713856239442,-500.0,0.00011997,2]
[323259382,1713856239451,-500.0,0.00011997,2]
[323259384,1713856239460,-500.0,0.00011997,2]
[323259386,1713856239469,-500.0,0.00011997,2]
[323259388,1713856239479,-500.0,0.00011997,2]
[323259391,1713856239488,-582.64,0.00011997,2]
[323259393,1713856239497,-497.69127045,0.00011997,2]
[323259395,1713856239508,-500.0,0.00011998,2]
[323259397,1713856239516,-500.0,0.00011998,2]
[323259399,1713856239526,-500.0,0.00011998,2]
[323259401,1713856239535,-169.99078475,0.00011998,2]
[323259403,1713856239544,-539.64,0.00011998,2]
[323259405,1713856239554,-639.63,0.00011998,2]
[323259407,1713856239562,-1059.45,0.00011998,2]
[323259409,1713856239571,-500.0,0.00011998,2]
[323259411,1713856239580,-950.48,0.00011998,2]
[323259413,1713856239589,-500.0,0.00011998,2]
[323259414,1713856239598,-500.0,0.00011998,2]
[323259417,1713856239610,-502.86077699,0.00011998,2]
[323259419,1713856239619,-631.04,0.00011998,2]
[323259421,1713856239628,-500.0,0.00011998,2]
[323259423,1713856239637,-500.0,0.00011998,2]
[323259425,1713856239647,-500.0,0.00011998,2]
[323259427,1713856239656,-506.74963775,0.00011998,2]
[323259429,1713856239665,-535.3,0.00011998,2]
[323259431,1713856239674,-504.4335535,0.00011998,2]
[323259433,1713856239683,-291.06607611,0.00011998,2]
[323259435,1713856239692,-500.0,0.00011998,2]
[323259437,1713856239700,-500.0,0.00011998,2]
[323259439,1713856239709,-500.0,0.00011998,2]
[323259441,1713856239718,-500.0,0.00011998,2]
[323259443,1713856239727,-1045.74,0.00011998,2]
[323259445,1713856239736,-1093.78,0.00011998,2]
[323259447,1713856239745,-500.0,0.00011998,2]
[323259449,1713856239754,-500.0,0.00011998,2]
[323259451,1713856239763,-500.0,0.00011998,2]
[323259452,1713856239773,-501.75128079,0.00011998,2]
[323259453,1713856239781,-500.0,0.00011998,2]
[323259454,1713856239791,-500.0,0.00011998,2]
[323259455,1713856239799,-500.0,0.00011998,2]
[323259456,1713856239808,-549.22850341,0.00011998,2]
[323259457,1713856239817,-500.0,0.00011998,2]
[323259458,1713856239826,-525.91,0.00011998,2]
[323259459,1713856239835,-500.0,0.00011998,2]
[323259460,1713856239843,-500.0,0.00011998,2]
[323259461,1713856239853,-500.0,0.00011998,2]
[323259463,1713856239864,-737.67,0.00011998,2]
[323259465,1713856239873,-500.0,0.00011998,2]
[323259467,1713856239883,-500.0,0.00011998,2]
[323259469,1713856239892,-500.0,0.00011998,2]
[323259471,1713856239901,-500.0,0.00011998,2]
[323259473,1713856239910,-500.0,0.00011998,2]
[323259475,1713856239919,-500.0,0.00011998,2]
[323259477,1713856239929,-500.0,0.00011998,2]
[323259479,1713856239938,-500.0,0.00011998,2]
[323259481,1713856239947,-502.62509489,0.00011998,2]
[323259483,1713856239956,-500.0,0.00011998,2]
[323259485,1713856239966,-500.0,0.00011998,2]
[323259487,1713856239975,-500.0,0.00011998,2]
[323259489,1713856239986,-500.0,0.00011998,2]
[323259491,1713856239995,-500.0,0.00011998,2]
[323259493,1713856240004,-503.50117415,0.00011998,2]
[323259495,1713856240013,-1135.23,0.00011998,2]
[323259497,1713856240022,-500.0,0.00011998,2]
[323259499,1713856240032,-1144.65,0.00011998,2]
[323259501,1713856240041,-1273.19,0.00011998,2]
[323259503,1713856240050,-500.0,0.00011998,2]
[323259505,1713856240060,-500.0,0.00011998,2]
[323259507,1713856240070,-500.0,0.00011998,2]
[323259509,1713856240079,-500.0,0.00011998,2]
[323259511,1713856240089,-1766.99,0.00011998,2]
[323259513,1713856240099,-500.0,0.00011998,2]
[323259516,1713856240110,-500.0,0.00011998,2]
[323259518,1713856240120,-1027.33,0.00011998,2]
[323259519,1713856240129,-500.0,0.00011998,2]
[323259521,1713856240138,-754.11,0.00011998,2]
[323259524,1713856240147,-304.26435674,0.00011998,2]
[323259526,1713856240157,-500.0,0.00011998,2]
[323259527,1713856240166,-507.94123038,0.00011998,2]
[323259530,1713856240176,-504.6265962,0.00011998,2]
[323259531,1713856240185,-500.0,0.00011998,2]
[323259533,1713856240194,-1138.51,0.00011998,2]
[323259536,1713856240203,-500.0,0.00011998,2]
[323259538,1713856240212,-500.0,0.00011998,2]
[323259540,1713856240221,-574.96461919,0.00011998,2]
[323259542,1713856240230,-505.86305804,0.00011998,2]
[323259544,1713856240239,-282.75938724,0.00011998,2]
[323259546,1713856240248,-500.0,0.00011998,2]
[323259548,1713856240257,-500.0,0.00011998,2]
[323259550,1713856240266,-500.0,0.00011998,2]
[323259551,1713856240275,-504.73647205,0.00011998,2]
[323259554,1713856240284,-500.0,0.00011998,2]
[323259556,1713856240293,-500.0,0.00011998,2]
[323259558,1713856240304,-506.35789469,0.00011998,2]
[323259560,1713856240313,-500.0,0.00011998,2]
[323259562,1713856240323,-500.0,0.00011998,2]
[323259564,1713856240331,-500.0,0.00011998,2]
[323259566,1713856240341,-500.0,0.00011998,2]
[323259568,1713856240349,-500.0,0.00011998,2]
[323259570,1713856240360,-500.0,0.00011998,2]
[323259572,1713856240370,-500.0,0.00011998,2]
[323259574,1713856240379,-503.80769065,0.00011998,2]
[323259576,1713856240388,-500.0,0.00011998,2]
[323259578,1713856240397,-500.0,0.00011998,2]
[323259580,1713856240406,-500.0,0.00011998,2]
[323259582,1713856240415,-500.0,0.00011998,2]
[323259584,1713856240425,-500.0,0.00011998,2]
[323259586,1713856240433,-500.0,0.00011998,2]
[323259588,1713856240443,-500.0,0.00011998,2]
[323259590,1713856240452,-500.0,0.00011998,2]
[323259592,1713856240461,-500.0,0.00011998,2]
[323259594,1713856240470,-500.0,0.00011998,2]
[323259596,1713856240479,-500.0,0.00011998,2]
[323259598,1713856240489,-500.0,0.00011998,2]
[323259599,1713856240500,-636.82,0.00011998,2]
[323259602,1713856240510,-500.0,0.00011998,2]
[323259604,1713856240521,-500.0,0.00011998,2]
[323259606,1713856240532,-500.0,0.00011998,2]
[323259608,1713856240542,-500.0,0.00011998,2]
[323259609,1713856240552,-500.0,0.00011998,2]
[323259612,1713856240563,-500.0,0.00011998,2]
[323259614,1713856240572,-506.88789594,0.00011998,2]
[323259616,1713856240582,-500.0,0.00011998,2]
[323259617,1713856240592,-506.89035017,0.00011998,2]
[323259619,1713856240602,-434.96418336,0.00011998,2]
[323259622,1713856240614,-500.0,0.00011998,2]
[323259623,1713856240624,-485.53135173,0.00011998,2]
[323259625,1713856240634,-500.0,0.00011998,2]
[323259627,1713856240644,-500.0,0.00011998,2]
[323259630,1713856240655,-505.26171624,0.00011998,2]
[323259632,1713856240665,-500.0,0.00011998,2]
[323259634,1713856240674,-1174.41,0.00011998,2]
[323259636,1713856240685,-838.4,0.00011998,2]
[323259638,1713856240696,-624.96617444,0.00011998,2]
[323259639,1713856240706,-500.0,0.00011998,2]
[323259641,1713856240718,-504.37484672,0.00011998,2]
[323259644,1713856240729,-667.67,0.00011998,2]
[323259645,1713856240739,-500.0,0.00011998,2]
[323259648,1713856240750,-500.0,0.00011998,2]
[323259650,1713856240761,-150.0,0.00011998,2]
[323259652,1713856240770,-500.0,0.00011998,2]
[323259654,1713856240780,-504.78799258,0.00011998,2]
[323259655,1713856240790,-500.0,0.00011998,2]
[323259657,1713856240799,-640.71803823,0.00011998,2]
[323259659,1713856240808,-500.0,0.00011998,2]
[323259662,1713856240818,-500.0,0.00011998,2]
[323259664,1713856240828,-503.17044374,0.00011998,2]
[323259666,1713856240838,-500.0,0.00011998,2]
[323259668,1713856240848,-500.0,0.00011998,2]
[323259670,1713856240859,-500.0,0.00011998,2]
[323259672,1713856240869,-450.68402175,0.00011998,2]
[323259674,1713856240878,-1540.9,0.00011998,2]
[323259676,1713856240888,-500.0,0.00011998,2]
[323259678,1713856240898,-500.0,0.00011998,2]
[323259680,1713856240907,-561.28202898,0.00011998,2]
[323259682,1713856240917,-1296.14,0.00011998,2]
[323259684,1713856240926,-500.0,0.00011998,2]
[323259686,1713856240935,-500.0,0.00011998,2]
[323259688,1713856240946,-500.0,0.00011998,2]
[323259690,1713856240954,-503.43475645,0.00011998,2]
[323259692,1713856240963,-504.80855703,0.00011998,2]
[323259694,1713856240973,-500.0,0.00011998,2]
[323259696,1713856240984,-500.0,0.00011998,2]
[323259698,1713856240994,-503.91555752,0.00011998,2]
[323259700,1713856241003,-500.0,0.00011998,2]
[323259702,1713856241013,-500.0,0.00011998,2]
[323259704,1713856241022,-500.0,0.00011998,2]
[323259706,1713856241032,-500.0,0.00011998,2]
[323259708,1713856241041,-501.21823171,0.00011998,2]
[323259710,1713856241050,-500.0,0.00011998,2]
[323259711,1713856241059,-500.0,0.00011998,2]
[323259714,1713856241070,-500.0,0.00011998,2]
[323259716,1713856241080,-850.26,0.00011998,2]
[323259718,1713856241089,-460.71191539,0.00011998,2]
[323259719,1713856241098,-500.0,0.00011998,2]
[323259721,1713856241108,-500.0,0.00011998,2]
[323259723,1713856241117,-500.0,0.00011998,2]
[323259725,1713856241126,-500.0,0.00011998,2]
[323259727,1713856241135,-211.42,0.00011998,2]
[323259730,1713856241145,-500.0,0.00011998,2]
[323259732,1713856241155,-597.25606466,0.00011998,2]
[323259734,1713856241164,-500.0,0.00011998,2]
[323259736,1713856241173,-500.0,0.00011998,2]
[323259738,1713856241182,-500.0,0.00011998,2]
[323259740,1713856241190,-503.15753355,0.00011998,2]
[323259742,1713856241199,-500.0,0.00011998,2]
[323259744,1713856241208,-628.93242781,0.00011998,2]
[323259746,1713856241217,-1851.56,0.00011998,2]
[323259748,1713856241226,-583.82417728,0.00011998,2]
[323259750,1713856241235,-1205.19,0.00011998,2]
[323259752,1713856241244,-546.07273924,0.00011998,2]
[323259754,1713856241254,-1151.35,0.00011998,2]
[323259755,1713856241264,-500.0,0.00011998,2]
[323259757,1713856241273,-502.42167712,0.00011998,2]
[323259759,1713856241281,-508.29008182,0.00011998,2]
[323259761,1713856241291,-620.1,0.00011998,2]
[323259763,1713856241299,-1266.18,0.00011998,2]
[323259765,1713856241308,-500.0,0.00011998,2]
[323259767,1713856241317,-500.0,0.00011998,2]
[323259769,1713856241327,-216.77981573,0.00011998,2]
[323259771,1713856241337,-500.0,0.00011998,2]
[323259772,1713856241346,-500.0,0.00011998,2]
[323259773,1713856241355,-500.0,0.00011998,2]
[323259774,1713856241364,-500.0,0.00011998,2]
[323259775,1713856241373,-500.0,0.00011998,2]
[323259776,1713856241382,-500.0,0.00011998,2]
[323259777,1713856241391,-505.62263145,0.00011998,2]
[323259778,1713856241400,-500.0,0.00011998,2]
[323259779,1713856241409,-500.0,0.00011998,2]
[323259781,1713856241418,-500.0,0.00011998,2]
[323259783,1713856241427,-500.0,0.00011998,2]
[323259785,1713856241435,-500.0,0.00011998,2]
[323259787,1713856241444,-501.64429941,0.00011998,2]
[323259789,1713856241453,-500.0,0.00011998,2]
[323259791,1713856241464,-506.47935853,0.00011998,2]
[323259793,1713856241475,-1374.47,0.00011998,2]
[323259794,1713856241485,-500.0,0.00011998,2]
[323259797,1713856241495,-500.0,0.00011998,2]
[323259799,1713856241507,-207.91,0.00011998,2]
[323259800,1713856241517,-504.35501501,0.00011998,2]
[323259803,1713856241527,-508.79515921,0.00011998,2]
[323259805,1713856241540,-500.0,0.00011998,2]
[323259807,1713856241550,-500.0,0.00011998,2]
[323259809,1713856241561,-500.0,0.00011998,2]
[323259811,1713856241571,-503.13657075,0.00011998,2]
[323259813,1713856241582,-409.95577367,0.00011998,2]
[323259814,1713856241592,-500.0,0.00011998,2]
[323259817,1713856241603,-500.0,0.00011998,2]
[323259819,1713856241615,-515.55,0.00011998,2]
[323259821,1713856241625,-150.0,0.00011998,2]
[323259823,1713856241635,-500.0,0.00011998,2]
[323259824,1713856241645,-500.0,0.00011998,2]
[323259826,1713856241656,-500.0,0.00011998,2]
[323259829,1713856241667,-500.0,0.00011998,2]
[323259831,1713856241677,-500.0,0.00011998,2]
[323259833,1713856241687,-500.0,0.00011998,2]
[323259834,1713856241697,-500.0,0.00011998,2]
[323259837,1713856241707,-500.0,0.00011998,2]
[323259838,1713856241717,-500.0,0.00011998,2]
[323259841,1713856241728,-500.0,0.00011998,2]
[323259842,1713856241739,-500.0,0.00011998,2]
[323259844,1713856241750,-500.0,0.00011998,2]
[323259847,1713856241761,-196.65,0.00011998,2]
[323259849,1713856241771,-471.03775123,0.00011998,2]
[323259873,1713856241993,-500.0,0.00011998,2]
[323259875,1713856242003,-504.12784133,0.00011998,2]
[323259877,1713856242012,-681.83,0.00011998,2]
[323259879,1713856242023,-500.0,0.00011998,2]
[323259881,1713856242032,-578.94640226,0.00011998,2]
[323259883,1713856242041,-500.0,0.00011998,2]
[323259885,1713856242050,-500.0,0.00011998,2]
[323259887,1713856242060,-500.0,0.00011998,2]
[323259889,1713856242069,-503.25539977,0.00011998,2]
[323259891,1713856242078,-500.0,0.00011998,2]
[323259893,1713856242088,-500.0,0.00011998,2]
[323259895,1713856242097,-507.06318018,0.00011998,2]
[323259897,1713856242107,-500.0,0.00011998,2]
[323259899,1713856242117,-500.0,0.00011998,2]
[323259901,1713856242126,-500.0,0.00011998,2]
[323259903,1713856242135,-500.0,0.00011998,2]
[323259905,1713856242145,-500.0,0.00011998,2]
[323259907,1713856242154,-501.78671626,0.00011998,2]
[323259909,1713856242163,-500.0,0.00011998,2]
[323259911,1713856242172,-500.0,0.00011998,2]
[323259913,1713856242181,-500.0,0.00011998,2]
[323259915,1713856242190,-1240.77,0.00011998,2]
[323259917,1713856242200,-500.0,0.00011998,2]
[323259919,1713856242209,-500.0,0.00011998,2]
[323259921,1713856242219,-500.0,0.00011998,2]
[323259923,1713856242228,-500.0,0.00011998,2]
[323259925,1713856242238,-500.0,0.00011998,2]
[323259927,1713856242246,-500.0,0.00011998,2]
[323259929,1713856242256,-500.0,0.00011998,2]
[323259931,1713856242265,-500.0,0.00011998,2]
[323259933,1713856242274,-500.0,0.00011998,2]
[323259935,1713856242283,-596.55665612,0.00011998,2]
[323259937,1713856242293,-570.07,0.00011998,2]
[323259939,1713856242302,-500.0,0.00011998,2]
[323259941,1713856242311,-500.0,0.00011998,2]
[323259943,1713856242320,-533.58956418,0.00011998,2]
[323259945,1713856242330,-500.0,0.00011998,2]
[323259947,1713856242339,-500.0,0.00011998,2]
[323259949,1713856242348,-500.0,0.00011998,2]
[323259951,1713856242359,-500.0,0.00011998,2]
[323259953,1713856242370,-500.0,0.00011998,2]
[323259955,1713856242382,-500.0,0.00011998,2]
[323259957,1713856242395,-500.0,0.00011998,2]
[323259960,1713856242406,-500.0,0.00011998,2]
[323259962,1713856242418,-500.0,0.00011998,2]
[323259964,1713856242427,-500.0,0.00011998,2]
[323259966,1713856242437,-500.0,0.00011998,2]
[323259968,1713856242446,-1119.02,0.00011998,2]
[323259970,1713856242455,-500.0,0.00011998,2]
[323259972,1713856242465,-501.84706846,0.00011998,2]
[323259974,1713856242474,-500.0,0.00011998,2]
[323259975,1713856242484,-500.0,0.00011998,2]
[323259977,1713856242493,-500.0,0.00011998,2]
[323259980,1713856242503,-500.0,0.00011998,2]
[323259981,1713856242513,-500.0,0.00011998,2]
[323259984,1713856242522,-500.0,0.00011998,2]
[323259986,1713856242532,-500.0,0.00011998,2]
[323259988,1713856242541,-500.0,0.00011998,2]
[323259990,1713856242551,-500.0,0.00011998,2]
[323259992,1713856242562,-500.0,0.00011998,2]
[323259994,1713856242571,-500.0,0.00011998,2]
[323259996,1713856242581,-500.0,0.00011998,2]
[323259998,1713856242589,-500.0,0.00011998,2]
[323260000,1713856242599,-500.0,0.00011998,2]
[323260002,1713856242612,-500.0,0.00011998,2]
[323260004,1713856242621,-500.0,0.00011998,2]
[323260006,1713856242630,-500.0,0.00011998,2]
[323260008,1713856242639,-500.0,0.00011998,2]
[323260010,1713856242648,-500.0,0.00011998,2]
[323260012,1713856242658,-502.62017985,0.00011998,2]
[323260014,1713856242669,-226.35515461,0.00011998,2]
[323260016,1713856242678,-500.0,0.00011998,2]
[323260018,1713856242687,-500.0,0.00011998,2]
[323260020,1713856242696,-500.0,0.00011998,2]
[323260023,1713856242706,-500.0,0.00011998,2]
[323260026,1713856242715,-556.32810192,0.00011998,2]
[323260029,1713856242724,-500.0,0.00011998,2]
[323260032,1713856242733,-500.0,0.00011998,2]
[323260035,1713856242743,-585.44,0.00011998,2]
[323260038,1713856242752,-500.0,0.00011998,2]
[323260041,1713856242761,-500.0,0.00011998,2]
[323260044,1713856242770,-500.0,0.00011998,2]
[323260047,1713856242780,-500.0,0.00011998,2]
[323260050,1713856242789,-501.67452957,0.00011998,2]
[323260052,1713856242799,-500.0,0.00011998,2]
[323260054,1713856242808,-500.0,0.00011998,2]
[323260056,1713856242818,-500.0,0.00011998,2]
[323260058,1713856242828,-500.0,0.00011998,2]
[323260060,1713856242837,-500.0,0.00011998,2]
[323260061,1713856242846,-500.0,0.00011998,2]
[323260063,1713856242856,-500.0,0.00011998,2]
[323260066,1713856242867,-500.0,0.00011998,2]
[323260068,1713856242876,-500.0,0.00011998,2]
[323260070,1713856242885,-500.0,0.00011998,2]
[323260072,1713856242895,-500.0,0.00011998,2]
[323260074,1713856242904,-500.0,0.00011998,2]
[323260076,1713856242913,-500.0,0.00011998,2]
[323260079,1713856242922,-500.0,0.00011998,2]
[323260082,1713856242932,-500.0,0.00011998,2]
[323260084,1713856242941,-500.0,0.00011998,2]
[323260086,1713856242950,-500.0,0.00011998,2]
[323260088,1713856242959,-500.0,0.00011998,2]
[323260090,1713856242968,-500.0,0.00011998,2]
[323260093,1713856242978,-500.0,0.00011998,2]
[323260095,1713856242990,-500.0,0.00011998,2]
[323260097,1713856242999,-500.0,0.00011998,2]
[323260099,1713856243008,-500.0,0.00011998,2]
[323260101,1713856243018,-747.56,0.00011998,2]
[323260103,1713856243027,-500.0,0.00011998,2]
[323260105,1713856243037,-500.0,0.00011998,2]
[323260107,1713856243046,-500.0,0.00011998,2]
[323260109,1713856243055,-500.0,0.00011998,2]
[323260112,1713856243065,-500.0,0.00011998,2]
[323260115,1713856243075,-500.0,0.00011998,2]
[323260118,1713856243084,-500.0,0.00011998,2]
[323260121,1713856243094,-1721.73,0.00011998,2]
[323260123,1713856243103,-500.0,0.00011998,2]
[323260125,1713856243113,-500.0,0.00011998,2]
[323260127,1713856243122,-500.0,0.00011998,2]
[323260129,1713856243132,-500.0,0.00011998,2]
[323260131,1713856243141,-500.0,0.00011998,2]
[323260133,1713856243150,-500.0,0.00011998,2]
[323260135,1713856243159,-500.0,0.00011998,2]
[323260137,1713856243169,-500.0,0.00011998,2]
[323260139,1713856243178,-500.0,0.00011998,2]
[323260141,1713856243187,-500.0,0.00011998,2]
[323260143,1713856243196,-532.42,0.00011998,2]
[323260145,1713856243205,-500.0,0.00011998,2]
[323260147,1713856243215,-500.0,0.00011998,2]
[323260149,1713856243224,-500.0,0.00011998,2]
[323260151,1713856243233,-566.9208245,0.00011998,2]